[Event "German Bundesliga 2024-25"]
[Site "Germany"]
[Date "2024.10.06"]
[Round "2.5"]
[White "Engel, Luis"]
[Black "Erdogmus, Yagiz Kaan"]
[Result "1-0"]
[Annotator "TA"]
[ECO "C70"]
[WhiteElo "2555"]
[BlackElo "2601"]
[PlyCount "101"]
[EventDate "2024.09.27"]
[EventType "team-tourn"]
[EventCountry "GER"]
[SourceTitle "playchess.com"]
[Source "ChessBase"]
[SourceQuality "1"]
[WhiteTeam "Hamburg"]
[BlackTeam "Viernheim"]
[TimeControl "40/5400+30:1800+30"]

{[%evp 12,101,33,44,52,33,32,29,72,72,81,101,71,73,87,100,98,105,104,104,117,122,118,120,100,48,103,84,191,154,121,120,198,112,195,164,354,420,388,401,415,410,414,423,413,412,383,411,377,372,450,437,469,408,381,406,381,388,421,414,492,495,2052,1679,1656,1588,29954,29954,29954,29956,29954,29956,29955,29955,29956,29957,29959,29959,29959,29961,29961,29961,29965,29965,29967,29968,29967,29965,29969,29968,12831,11331]} 1. e4 e5 2. Nf3 Nc6 3. Bb5 {[%cal Bf1b5,Bb5a4,Ba4b3,Bb3d5][%mdl 32]} a6 4. Ba4 d6 5. O-O b5 6. Bb3 Na5 7. d4 exd4 8. Qxd4 {[%cal Ob3f7] Schwarz muss nun Bxf7+! beachten.} Ne7 9. Bd5 c5 {Weiß hat minimalen Vorteil.} 10. Qc3 b4 11. Qe3 Nxd5 12. exd5+ Be7 13. Re1 Nc4 {[#]} 14. Qe4 Nb6 15. a3 Bb7 16. c4 {Zielt auf axb4 ab.} (16. axb4 Bxd5 17. Qe2 Bc4 $14) 16... bxc3 17. Nxc3 Kf8 18. Qd3 {Weiß hat aktiveres Spiel.} (18. Bf4 $16) 18... Qd7 (18... h5 $14) 19. Bf4 $16 Re8 (19... Kg8 $16) 20. b4 cxb4 21. axb4 Rc8 (21... h5 $16 22. b5 axb5) 22. Rac1 (22. Nd4 $18 Kg8 23. Nf5) 22... Bf6 (22... h5 $16) 23. Ne4 $36 {[%mdl 2048] Weiss hat starke Initiative.} Rxc1 $2 (23... Be7) 24. Bxd6+ (24. Rxc1 Be7 $16) 24... Be7 25. Bxe7+ (25. Rxc1 Bxd6 26. Nc5 Bxc5 27. bxc5 Qxd5 $11) 25... Qxe7 26. Rxc1 Nxd5 {[%cal Bb6d5,Bd5f4,Bf4g2][%mdl 32]} 27. Re1 {Nc5 ist eine echte Drohung.} Nf4 28. Qd6 Qxd6 29. Nxd6 Bc6 {[#] Verhindert Re8+.} 30. Ne5 {[%csl LRc6,LRf7] Lässt Nd3 nicht zu} Nxg2 31. Rc1 Bd5 {[#]} 32. Nexf7 $1 {[%mdl 512]} Bxf7 33. Rc8+ (33. Kxg2 Bd5+ 34. Kg3 Ke7 35. Nf5+ Kf6 $11) 33... Ke7 {Droht stark ...Rxc8.} 34. Rxh8 {[%mdl 4096] Endspiel. KRN-KBN} Bd5 35. Nf5+ Kf7 36. Ne3 ({Viel schwächer ist} 36. Rxh7 Ne1 37. Kf1 (37. Nxg7 Nf3+ 38. Kf1 Kg8 $16) (37. Rxg7+ Kf6 $18) 37... Nf3) 36... Nf4 (36... Nxe3 $142 37. fxe3 Kg6) 37. Nxd5 Nxd5 38. Rxh7 Nxb4 {KR-KN} 39. Rh4 Nd5 40. Ra4 Nc7 41. Rc4 Nd5 42. Rc6 Nb4 43. Rb6 a5 44. Rb5 Nc6 45. Rc5 Nd4 46. Rxa5 Ne6 47. Kg2 Kf6 48. Kg3 Nd4 49. Kg4 Ne6 50. h4 {[%cal Bh2h4,Bh4h5][%mdl 32]} Nd4 51. h5 {[%emt 2:09:02] Gewichteter Fehlerwert: Weiß=0.08 (makellos) /Schwarz=0.28 (präzise) .  Fehler:       	Weiß=2     	Schwarz=6     Ungenau:       	---       	Schwarz=1     OK:         	Weiß=14    	Schwarz=13    Bester:       	Weiß=4     	Schwarz=2} 1-0

[Event "German Bundesliga 2024-25"]
[Site "Germany"]
[Date "2024.10.06"]
[Round "2.5"]
[White "Girel, Joseph"]
[Black "Dautov, Rustem"]
[Result "1/2-1/2"]
[Annotator "RC"]
[ECO "B12"]
[WhiteElo "2482"]
[BlackElo "2570"]
[PlyCount "77"]
[EventDate "2024.09.27"]
[EventType "team-tourn"]
[EventCountry "GER"]
[SourceTitle "playchess.com"]
[Source "ChessBase"]
[SourceQuality "1"]
[WhiteTeam "Bayern Muenchen"]
[BlackTeam "Deizisau"]
[TimeControl "40/5400+30:1800+30"]

1. e4 {[%emt 0:00:16]} c6 {[%emt 0:00:06]} 2. d4 {[%emt 0:00:27]} d5 {[%emt 0:00:07]} 3. e5 {[%emt 0:00:36]} Bf5 {[%emt 0:00:08]} 4. h4 {[%emt 0:00:38]} h5 {[%emt 0:00:09]} 5. c4 {[%emt 0:00:27]} e6 {[%emt 0:00:46]} 6. Nc3 {[%emt 0:00:12]} dxc4 {[%emt 0:14:16]} 7. Bxc4 {[%emt 0:00:17]} Nd7 {[%emt 0:00:06]} 8. Nge2 {[%emt 0:00:34]} Nb6 {[%emt 0:00:21]} 9. Bb3 {[%emt 0:02:57]} Ne7 {[%emt 0:02:27]} 10. Bg5 {[%emt 0:02:34]} Qd7 {[%emt 0:02:13]} 11. Ng3 {[%emt 0:01:40]} Bg6 {[%emt 0:01:21]} 12. Qd2 {[%emt 0:07:45]} Nf5 {[%emt 0:05:04]} 13. Rd1 {[%emt 0:03:19]} Nxg3 {[%emt 0:08:06]} 14. fxg3 {[%emt 0:00:09]} Be7 {[%emt 0:00:07]} 15. O-O {[%emt 0:04:21]} Bxg5 {[%emt 0:21:49]} 16. Qxg5 {[%emt 0:00:25]} Qe7 {[%emt 0:00:08]} 17. Qe3 {[%emt 0:01:47]} O-O-O {[%emt 0:03:01]} 18. Rf4 {[%emt 0:06:17]} Kb8 {[%emt 0:08:04]} 19. Ne4 {[%emt 0:08:28]} Bf5 {[%emt 0:04:42]} 20. Kh2 {[%emt 0:07:51]} g6 {[%emt 0:03:01]} 21. a3 {[%emt 0:03:18]} Rd7 {[%emt 0:03:08]} 22. Ba2 {[%emt 0:03:39]} Rhd8 {[%emt 0:01:46]} 23. b4 {[%emt 0:01:16]} Rc7 {[%emt 0:04:30]} 24. Rf2 {[%emt 0:05:36]} Bg4 {[%emt 0:03:36]} 25. Rdf1 {[%emt 0:03:30]} Bf5 {[%emt 0:00:15]} 26. Rd2 {[%emt 0:02:00]} Ka8 {[%emt 0:01:35]} 27. Bb3 {[%emt 0:01:03]} Kb8 {[%emt 0:00:19]} 28. Nd6 {[%emt 0:09:18]} Nc8 {[%emt 0:00:39]} 29. Ne4 {[%emt 0:03:10]} Nb6 {[%emt 0:00:08]} 30. Kh1 {[%emt 0:04:02]} Ka8 {[%emt 0:00:26]} 31. Kg1 {[%emt 0:00:07]} Kb8 {[%emt 0:00:06]} 32. Kh2 {[%emt 0:00:03]} Ka8 {[%emt 0:00:57]} 33. Rf4 {[%emt 0:03:35]} Kb8 {[%emt 0:00:27]} 34. Qe2 {[%emt 0:02:27]} Bg4 {[%emt 0:01:18]} 35. Qf2 {[%emt 0:02:16]} Bf5 {[%emt 0:00:07]} 36. Qe1 {[%emt 0:01:26]} Ka8 {[%emt 0:01:53]} 37. Ba2 {[%emt 0:02:35]} Kb8 {[%emt 0:00:20]} 38. Qf1 {[%emt 0:01:03]} Ka8 {[%emt 0:00:40]} 39. Qe2 {[%emt 0:01:22]} 1/2-1/2

[Event "German Bundesliga 2024-25"]
[Site "Germany"]
[Date "2024.10.06"]
[Round "2.5"]
[White "Maiwald, Jens-Uwe"]
[Black "Socko, Monika"]
[Result "1/2-1/2"]
[Annotator "TA"]
[ECO "B12"]
[WhiteElo "2429"]
[BlackElo "2419"]
[PlyCount "41"]
[EventDate "2024.09.27"]
[EventType "team-tourn"]
[EventCountry "GER"]
[SourceTitle "playchess.com"]
[Source "ChessBase"]
[SourceQuality "1"]
[WhiteTeam "TU Dresden"]
[BlackTeam "St. Pauli"]
[TimeControl "40/5400+30:1800+30"]

{[%evp 9,41,0,28,1,16,0,49,25,56,43,47,62,89,61,176,119,190,31,52,47,52,53,36,48,36,0,0,0,0,-9,-10,0,0,-29]} 1. e4 {[%emt 0:00:04]} c6 {[%emt 0:00:03]} 2. d4 {[%emt 0:00:33]} d5 {[%emt 0:00:04]} 3. e5 {[%emt 0:00:10]} Bf5 {[%emt 0:01:45]} 4. h4 {[%emt 0:01:44]} h6 {[%emt 0:01:22]} 5. g4 {[%emt 0:00:36]} Bd7 {[%emt 0:01:39][%cal Oc6c5]} 6. Nc3 {[%emt 0:03:41]} e6 {[%emt 0:01:02]} 7. Be3 {[%emt 0:01:44]} Qc7 {[%emt 0:06:39]} (7... Qb6 $11) 8. f4 {[%emt 0:09:22] White is slightly better.} c5 {[%emt 0:01:11]} 9. Nf3 {[%emt 0:02:39]} h5 {[%emt 0:03:14]} 10. gxh5 {[%emt 0:03:09]} Rxh5 {[%emt 0:08:16]} 11. dxc5 {[%emt 0:07:35]} g6 {[%emt 0:02:35]} (11... Bxc5 $14 12. Bxc5 Qxc5) 12. b4 {[%emt 0:06:16]} ({White should play} 12. Be2 $18) 12... b6 {[%emt 0:03:21]} (12... Ne7 $16) 13. Rb1 $2 {[%emt 0:21:58]} ({Only move:} 13. Nb5 $18 Bxb5 14. Bxb5+ Nd7 15. c4) 13... a6 {[%emt 0:10:17][%cal Rb6c5]} 14. Ne2 {[%emt 0:07:55] [#] Black must now prevent Ng3.} ({Much weaker is} 14. cxb6 Qxc3+ 15. Kf2 Qc6 $11 (15... Bxb4 $2 {loses.} 16. b7 $18)) (14. Ng5 {keeps more tension.} bxc5 15. b5 axb5 16. Nxb5 Bxb5 17. Bxb5+ Nd7 18. f5) 14... bxc5 {[%emt 0:00:54]} 15. bxc5 {[%emt 0:00:06]} Bxc5 {[%emt 0:00:34]} 16. Bxc5 {[%emt 0:04:09]} Qxc5 {[%emt 0:00:03]} 17. Ned4 {[%emt 0:04:49] Prevents Bb5.} Ne7 {[%emt 0:01:11][%cal Od7b5] The position is equal.} 18. Qd2 {[%emt 0:00:21]} Nbc6 {[%emt 0:02:03]} 19. Be2 {[%emt 0:02:44]} Rh8 {[%emt 0:07:49]} 20. c3 {[%emt 0:03:30]} Na5 {[%emt 0:08:55]} 21. Ng5 {[%emt 0:00:40] Weighted Error Value: White=0.29 (precise) /Black=0.25 (precise) .  Mistake:       	White=2     	Black=3      Inaccurate:     	White=3     	Black=2      OK:         	White=2     	Black=4      Best:        	---       	Black=1} 1/2-1/2

[Event "German Bundesliga 2024-25"]
[Site "Germany"]
[Date "2024.09.29"]
[Round "2.6"]
[White "Van Wely, Loek"]
[Black "Albers, Sasa"]
[Result "1/2-1/2"]
[Annotator "TA"]
[ECO "D38"]
[WhiteElo "2618"]
[BlackElo "2264"]
[PlyCount "162"]
[EventDate "2024.09.27"]
[EventType "team-tourn"]
[EventCountry "GER"]
[SourceTitle "playchess.com"]
[Source "ChessBase"]
[SourceQuality "1"]
[WhiteTeam "SG Solingen"]
[BlackTeam "SV Muelheim Nord"]
[TimeControl "40/5400+30:1800+30"]

{[%evp 12,162,14,10,39,1,27,0,39,4,24,4,14,22,46,8,33,16,44,-21,22,14,22,30,23,-30,-37,-71,-35,-34,0,0,0,0,0,0,0,-67,-36,-49,-50,-73,-65,-57,-72,-98,-40,-77,-74,-82,-75,-60,-52,-113,-120,-177,-171,-168,-144,-199,-7,-30,-41,-31,-30,-34,-30,-146,-142,-143,-59,-142,-8,-16,-14,-11,-8,-8,-8,-8,-9,-4,-2,-6,8,10,14,0,8,8,149,131,147,161,160,99,220,162,175,170,146,154,211,69,69,50,29960,29960,29963,29966,29951,339,323,310,302,144,130,8,8,8,8,8,20,8,8,8,8,8,8,8,8,8,8,7,20,0,70,8,8,8,8,8,8,8,8,12,20,0,0,0,0,0,0]} 1. c4 {[%emt 0:00:04]} e6 {[%emt 0:00:21]} 2. Nc3 {[%emt 0:00:18]} Nf6 {[%emt 0:00:25]} 3. Nf3 {[%emt 0:00:28]} d5 {[%emt 0:00:10]} 4. d4 {[%emt 0:00:29]} Bb4 {[%emt 0:00:07]} 5. Qa4+ {[%emt 0:00:59]} Nc6 {[%emt 0:00:09]} 6. e3 {[%emt 0:00:23]} O-O {[%emt 0:00:13]} 7. Bd2 {[%emt 0:00:05]} Re8 {[%emt 0:00:35]} 8. Rd1 {[%emt 0:01:26]} h6 {[%emt 0:01:36]} 9. h3 {[%emt 0:03:19]} Bf8 {[%emt 0:13:56]} 10. a3 {[%emt 0:20:39]} a6 {[%emt 0:11:51]} 11. Qc2 {[%emt 0:18:24]} dxc4 {[%emt 0:29:36]} 12. Bxc4 {[%emt 0:00:33]} e5 {[%emt 0:00:29]} 13. d5 {[%emt 0:07:27]} (13. Nxe5 {with more complications.} Nxe5 14. dxe5 Rxe5 15. O-O) 13... Nb8 {[%emt 0:01:55][%cal Bc6b8,Bb8d7,Bd7f8,Bf8h7][%mdl 32]} 14. e4 {[%emt 0:00:54]} Nbd7 {[%emt 0:01:06]} 15. g4 {[%emt 0:04:40]} (15. Be3 $14) 15... Bd6 {[%emt 0:07:19]} 16. g5 {[%emt 0:13:06]} hxg5 {[%emt 0:00:05]} 17. Bxg5 {[%emt 0:00:56]} Nf8 {[%emt 0:00:06]} 18. Ne2 {[%emt 0:04:22]} (18. Be2 $142) 18... N8h7 {[%emt 0:02:03]} 19. Bh4 {[%emt 0:01:27]} Bd7 {[%emt 0:00:38]} 20. Ng3 {[%emt 0:01:52]} Qc8 {[%emt 0:01:09]} 21. Qd2 {[%emt 0:04:38]} b5 {[%emt 0:05:05]} 22. Bb3 {[%emt 0:03:42]} a5 {[%emt 0:03:15][%cal Ba6a5,Ba5a4][%mdl 32]} 23. Rg1 {[%emt 0:01:18]} a4 {[%emt 0:02:02]} 24. Bc2 {[%emt 0:01:00]} ({White should try} 24. Ba2 $11) 24... Ra6 $15 {[%emt 0:01:31]} 25. Ng5 {[%emt 0:02:47]} Bf8 {[%emt 0:01:46]} 26. Nxh7 {[%emt 0:01:48]} Nxh7 {[%emt 0:01:01]} 27. Nf5 {[%emt 0:00:20]} Rg6 $36 {[%emt 0:03:16][%mdl 2048] Keeping White busy.} 28. Ke2 {[%emt 0:00:43]} Qa6 {[%emt 0:02:56]} (28... Rxg1 $17 29. Rxg1 Bxf5 30. exf5 e4) 29. Qe3 {[%emt 0:01:25]} Nf6 {[%emt 0:01:56]} 30. Qf3 {[%emt 0:01:23][%cal Od5d6]} b4+ $1 {[%emt 0:02:48]} 31. Bd3 {[%emt 0:00:09]} Bb5 {[%emt 0:00:13]} 32. Bxf6 {[%emt 0:02:21]} (32. Rxg6 $15 fxg6 33. Nh6+ gxh6 (33... Kh7 34. Bxf6 Kxh6 35. Bxe5 $15) 34. Qxf6 Qxf6 35. Bxf6) 32... Rxf6 $17 {[%emt 0:01:20]} 33. h4 {[%emt 0:02:08]} (33. Bxb5 $17 Qxb5+ 34. Ke1 (34. Qd3 Qxd3+ 35. Rxd3 Rb8 $17)) 33... bxa3 $19 {[%emt 0:02:05]} 34. bxa3 {[%emt 0:00:02]} Rb8 {[%emt 0:00:32][%cal Og7g6]} 35. Rg3 {[%emt 0:01:27]} (35. h5 $17 {keeps fighting.}) 35... Rfb6 $2 {[%emt 0:01:21]} (35... Bxa3 36. Rxg7+ Kf8 37. Rh7 $15) (35... g6 $1 $19 {[%cal Og8h7] ...Kh7! would now be deadly.} 36. h5 Bxa3) 36. h5 {[%emt 0:00:35][%cal Od5d6]} Bxd3+ {[%emt 0:02:12]} 37. Qxd3 {[%emt 0:00:28]} Rb2+ {[%emt 0:00:26]} 38. Kf1 {[%emt 0:00:10]} Qf6 {[%emt 0:00:28] ...R8b3 is the strong threat.} 39. Qe3 {[%emt 0:00:59]} (39. Qc3 $11) 39... R8b3 $17 {[%emt 0:01:33]} 40. Rd3 {[%emt 0:00:16]} Qa6 {[%emt 0:00:22]} (40... Bxa3 41. Rxg7+ Kh8 42. Rxb3 Rxb3 43. Qa7 $18) (40... Rxd3 $17 41. Qxd3 Qb6) 41. d6 {[%emt 0:16:54]} (41. Kg2 $1 $15) 41... Rxd3 {[%emt 0:03:12]} (41... Rxa3 42. d7 (42. dxc7 Rc2 $11) 42... Rb8 43. Nh6+ Kh7 44. Nxf7 $14) (41... cxd6 $17 42. Kg2 Qxd3 43. Qxd3 Rxd3 44. Rxd3 Rb6) 42. Qxd3 $11 {[%emt 0:00:14]} Qxd3+ {[%emt 0:05:35]} 43. Rxd3 {[%emt 0:00:02]} Bxd6 $17 {[%emt 0:04:08][%mdl 4096] Endgame. KRB-KRN} 44. Rg3 {[%emt 0:03:00]} Bf8 {[%emt 0:03:28] Hoping for ...Rb3.} 45. Nh6+ {[%emt 0:01:31]} Kh7 {[%emt 0:00:05]} 46. Nxf7 {[%emt 0:00:04]} Rb3 {[%emt 0:02:08] And now ...Rxg3 would win.} 47. Rg6 {[%emt 0:02:04]} Rxa3 {[%emt 0:10:04]} 48. Ng5+ {[%emt 0:00:38]} Kg8 {[%emt 0:00:55]} 49. Ra6 {[%emt 0:01:11]} Rb3 {[%emt 0:02:37]} 50. Rxa4 {[%emt 0:01:27]} Rb6 {[%emt 0:00:45]} (50... Rb8 $11) 51. Ra8 $16 {[%emt 0:00:57]} Rh6 {[%emt 0:00:59]} 52. Rc8 {[%emt 0:02:11]} c5 {[%emt 0:01:42]} 53. Ke2 {[%emt 0:00:26] White is more active.} (53. Kg2 $142) 53... Rf6 {[%emt 0:00:48]} (53... c4 $16 54. Kd2 (54. Rxc4 Rxh5 55. Nf3 Kf7 $14) 54... g6) 54. f3 {[%emt 0:02:17]} Rd6 {[%emt 0:00:29]} 55. Kf2 {[%emt 0:01:31]} (55. Rxc5 Rd2+ 56. Kxd2 Bxc5 $16) (55. f4 exf4 56. Kf3 (56. Rxc5 Rh6 $11) 56... Rh6 $16) 55... Rf6 {[%emt 0:00:32]} 56. Kg3 {[%emt 0:00:22]} Rh6 {[%emt 0:00:09]} (56... c4 $16 {was called for.} 57. Rxc4 g6) 57. f4 {[%emt 0:02:38]} ({White has to play} 57. Kg4 $18) 57... exf4+ $14 {[%emt 0:00:15]} 58. Kxf4 {[%emt 0:00:03] Strongly threatening e5.} c4 $2 {[%emt 0:01:06][%mdl 8192]} (58... Rxh5 $14 59. e5 Rh1) 59. e5 $1 {[%emt 0:00:26][%cal Be4e5,Be5e6][%mdl 32]} (59. Rxc4 Rf6+ 60. Kg4 Bd6 $14) 59... c3 {[%emt 0:00:10]} 60. e6 {[%emt 0:00:57]} (60. Rxc3 Rxh5 61. Kf5 Rh1 $14) 60... c2 {[%emt 0:00:23]} 61. Rxc2 $2 {[%emt 0:00:13]} (61. Kg4 {mates} Rf6 62. e7 (62. Rxc2 Ba3 $18) 62... c1=Q 63. exf8=Q+ (63. Rxc1 Bxe7 64. Rc8+ Bf8 $11) (63. exf8=R+ Rxf8 64. Rxc1 Rb8 $18) 63... Rxf8 64. Rxc1 Re8 65. Rc6 Kf8 66. Kf5) 61... Bd6+ $18 {[%emt 0:00:17]} 62. Kg4 {[%emt 0:01:30] White wants to mate with Rc8+.} Kf8 {[%emt 0:00:02] [#]} 63. Rf2+ {[%emt 0:00:35]} (63. Rb2 $1 $18 {[%cal Rb2b6] and the rest is easy.}) 63... Ke8 $16 {[%emt 0:00:03] [#]} 64. Re2 {[%emt 0:00:49]} (64. Ra2 $1 $16 {[%cal Ra2a8]}) 64... Ke7 $11 {[%emt 0:01:57]} 65. Rb2 {[%emt 0:00:34]} g6 $1 {[%emt 0:00:32]} 66. Rb7+ {[%emt 0:00:35]} Kf6 $1 {[%emt 0:00:02]} 67. Rf7+ {[%emt 0:00:34]} Ke5 {[%emt 0:00:03]} 68. hxg6 {[%emt 0:00:28]} Rxg6 {[%emt 0:00:07]} 69. Rf5+ {[%emt 0:00:13]} Kd4 {[%emt 0:00:09]} 70. Kh5 {[%emt 0:00:12]} Rg8 {[%emt 0:00:17]} 71. Nf7 {[%emt 0:00:51]} Be7 {[%emt 0:00:52]} 72. Ra5 {[%emt 0:00:30]} Rg1 {[%emt 0:01:32]} 73. Nh6 {[%emt 0:00:57] aiming for Nf5+.} Bb4 {[%emt 0:01:07]} ({Better is} 73... Ke4 $11) 74. Rb5 {[%emt 0:00:27]} (74. Nf5+ $1 $14 Ke4 75. Rb5) 74... Bc5 $1 {[%emt 0:00:23] The position is equal.} 75. Nf5+ {[%emt 0:00:29]} Kc4 {[%emt 0:00:28]} 76. Rb7 {[%emt 0:00:31]} Re1 {[%emt 0:00:33]} 77. e7 {[%emt 0:00:22]} Kd5 {[%emt 0:00:32]} 78. Kg6 {[%emt 0:00:25]} Kc6 {[%emt 0:00:24]} 79. Rb8 {[%emt 0:00:19]} Bxe7 {[%emt 0:00:15]} 80. Re8 {[%emt 0:00:17]} Rg1+ {[%emt 0:00:04]} 81. Kf7 {[%emt 0:00:04]} Bc5 {[%emt 0:00:13] Never resign too early!   Weighted Error Value: White=0.27 (precise) /Black=0.34.  Loses game:     	---       	Black=1      Missed win:     	---       	Black=1      Mistake:       	White=13    	Black=7      Inaccurate:     	White=6     	Black=6      OK:         	White=19    	Black=23     Best:        	White=6     	Black=6      Strong:       	White=1     	Black=4} 1/2-1/2

[Event "German Bundesliga 2024-25"]
[Site "Germany"]
[Date "2024.10.06"]
[Round "2.6"]
[White "Meier, Georg"]
[Black "Papp, Gabor"]
[Result "1/2-1/2"]
[Annotator "TA"]
[ECO "D02"]
[WhiteElo "2604"]
[BlackElo "2508"]
[PlyCount "61"]
[EventDate "2024.09.27"]
[EventType "team-tourn"]
[EventCountry "GER"]
[SourceTitle "playchess.com"]
[Source "ChessBase"]
[SourceQuality "1"]
[WhiteTeam "Viernheim"]
[BlackTeam "Hamburg"]
[TimeControl "40/5400+30:1800+30"]

{[%evp 15,61,52,58,59,59,51,43,44,41,41,28,41,33,34,49,0,35,29,32,31,28,34,29,0,0,0,0,0,0,0,0,0,0,0,0,0,0,0,7,8,22,0,0,0,0,0,0,0]} 1. Nf3 {[%emt 0:00:04]} d5 {[%emt 0:00:08]} 2. g3 {[%emt 0:00:06]} c5 {[%emt 0:00:08]} 3. Bg2 {[%emt 0:00:06]} Nc6 {[%emt 0:00:08]} 4. d4 {[%emt 0:00:45]} cxd4 {[%emt 0:00:18]} 5. Nxd4 {[%emt 0:00:05]} Nf6 {[%emt 0:00:20]} 6. c4 {[%emt 0:03:15]} e5 {[%emt 0:00:14]} 7. Nxc6 bxc6 {[%emt 0:00:05]} 8. O-O {[%emt 0:07:39]} Be6 {[%emt 0:00:39]} 9. Nc3 {[%emt 0:07:44]} Rc8 {[%emt 0:06:25]} 10. cxd5 {[%emt 0:02:43]} cxd5 {[%emt 0:00:09]} 11. Qa4+ {[%emt 0:00:51] White is slightly better.} Qd7 {[%emt 0:00:06]} 12. Qxd7+ {[%emt 0:00:42]} Kxd7 {[%emt 0:00:05]} 13. Rd1 {[%emt 0:06:21][%cal Oc1g5]} Bc5 {[%emt 0:01:00]} 14. Na4 {[%emt 0:08:31]} ({But not} 14. Bxd5 $6 Nxd5 15. Nxd5 Bxd5 16. Rxd5+ Ke6 $16) 14... Be7 {[%emt 0:00:40]} 15. Nc3 {[%emt 0:04:31][%cal Rc3d5]} Bc5 {[%emt 0:11:56]} 16. Nxd5 {[%emt 0:16:46]} (16. Bxd5 Nxd5 17. Nxd5 Bxd5 18. Rxd5+ Ke6 $11) 16... Nxd5 {[%emt 0:00:23]} 17. Bxd5 {[%emt 0:00:11]} Bxd5 {[%emt 0:00:05]} 18. Rxd5+ {[%emt 0:00:06]} Ke6 {[%emt 0:00:03]} 19. e4 {[%emt 0:04:36]} Rhd8 {[%emt 0:16:10] The position is equal.} 20. Rxd8 {[%emt 0:01:17]} Rxd8 $11 {[%emt 0:00:03][%mdl 4096] Endgame. KRB-KRB} 21. Bg5 {[%emt 0:00:09]} f6 {[%emt 0:04:57]} 22. Rc1 {[%emt 0:00:07]} Bb6 {[%emt 0:06:10]} 23. Be3 {[%emt 0:00:48]} Bxe3 {[%emt 0:00:06]} 24. fxe3 {[%emt 0:00:05] KR-KR} Rd2 {[%emt 0:07:58]} 25. Rc7 {[%emt 0:03:51][%csl LRa7,LRg7]} g5 {[%emt 0:10:11]} 26. Rxh7 {[%emt 0:11:44]} Rxb2 {[%emt 0:00:37]} 27. Rxa7 {[%emt 0:02:25]} g4 {[%emt 0:00:06]} 28. Rg7 {[%emt 0:06:37]} Rb1+ {[%emt 0:00:22]} 29. Kf2 {[%emt 0:00:16]} Rb2+ {[%emt 0:00:04]} 30. Kf1 {[%emt 0:00:10]} Rxa2 {[%emt 0:02:04]} 31. Rxg4 {[%emt 0:01:35] Weighted Error Value: White=0.06 (flawless) /Black=0.03 (flawless) .  Inaccurate:     	White=1     	---        OK:         	White=10    	Black=11     Best:        	White=1     	Black=3} 1/2-1/2

[Event "German Bundesliga 2024-25"]
[Site "Germany"]
[Date "2024.10.06"]
[Round "2.6"]
[White "Heimann, Andreas"]
[Black "Kurmann, Oliver"]
[Result "1/2-1/2"]
[Annotator "TA"]
[ECO "B33"]
[WhiteElo "2556"]
[BlackElo "2413"]
[PlyCount "41"]
[EventDate "2024.09.27"]
[EventType "team-tourn"]
[EventCountry "GER"]
[SourceTitle "playchess.com"]
[Source "ChessBase"]
[SourceQuality "1"]
[WhiteTeam "Deizisau"]
[BlackTeam "Bayern Muenchen"]
[TimeControl "40/5400+30:1800+30"]

{[%evp 22,41,36,5,10,8,13,12,18,12,13,0,1,0,0,0,0,0,16,-8,0,-21]} 1. e4 {[%emt 0:00:03]} c5 {[%emt 0:00:09]} 2. Nf3 {[%emt 0:00:06][%cal Bg1f3,Bf3d4,Bd4b5,Bb5a3,Ba3c2][%mdl 32]} e6 {[%emt 0:00:10][%cal Be7e6,Be6e5][%mdl 32]} 3. d4 {[%emt 0:02:52]} cxd4 {[%emt 0:00:02]} 4. Nxd4 {[%emt 0:00:06]} Nf6 {[%emt 0:00:12]} 5. Nc3 {[%emt 0:00:05]} Nc6 {[%emt 0:00:10]} 6. Ndb5 {[%emt 0:01:34]} d6 {[%emt 0:00:18]} 7. Bf4 {[%emt 0:00:13]} e5 {[%emt 0:00:12]} 8. Bg5 {[%emt 0:00:02]} a6 {[%emt 0:00:14]} 9. Na3 {[%emt 0:00:05]} b5 {[%emt 0:00:12]} 10. Nd5 {[%emt 0:00:24]} Be7 {[%emt 0:00:09][%cal Bf8e7,Be7f6,Bf6g5][%mdl 32]} 11. Bxf6 {[%emt 0:00:04]} Bxf6 {[%emt 0:00:10]} 12. c4 {[%emt 0:01:28]} b4 {[%emt 0:00:15] The position is equal.} 13. Nc2 {[%emt 0:00:03]} O-O {[%emt 0:00:15]} 14. Be2 {[%emt 0:04:00]} a5 {[%emt 0:00:33]} 15. O-O {[%emt 0:00:06]} Bg5 {[%emt 0:00:24]} 16. Qd3 {[%emt 0:01:19]} Be6 {[%emt 0:00:49]} 17. Rfd1 {[%emt 0:02:42]} g6 {[%emt 0:29:52]} 18. a3 {[%emt 0:08:29]} bxa3 {[%emt 0:01:55]} 19. Qxa3 {[%emt 0:06:33]} Qb8 {[%emt 0:16:54]} 20. Bf1 {[%emt 0:01:47]} Rc8 {[%emt 0:03:20]} 21. Rd3 {[%emt 0:05:47] Not much happened in this game.   Weighted Error Value: White=0.09 (flawless) /Black=0.01 (flawless) .  OK:         	White=3     	Black=5} 1/2-1/2